{"text_format":"1","workbook":"xlsx","n_sheets":3,"sheets":["CLIENTES","SERVICIOS","PRO-FORMAS"],"not_rendered":{"charts":0,"images":3,"macros":1,"external_links":0,"defined_names":4,"comments":0,"pivot_tables":0},"unopened":[],"bounds":{"document_bytes":16777216,"sheet_cells":100000,"rows_first":2000,"rows_last":500,"rows_between":2000,"halvings":0,"cell_chars":16384,"cell_head_chars":4096},"cells_cut":0,"cells_raw":0,"read":"whole","date_system":"1900"}

{"sheet":"CLIENTES","index":0,"n_rows":17,"n_cols":16,"rows_kept":17,"cut":false,"hidden":true,"merged":[[1,2,2,4]]}
[]
[null,null,"LISTADO DE CLIENTES"]
[]
[]
["CODIGO","NOMBRE O RAZON SOCIAL","CI / RIF","DIRECCION","P. UNIT","TELEFONO","CIUDAD","ESTADO","SERVICIO","DTO","F. INICIO","F. CIERRE","CORREO ELECTRONICO"]
["SUPERFLY","SUPERFLY, C.A","J-11111111-0","CALLE CARABOBO CASA","625","0241-222222","VALENCIA","ESTADO CARABOBO","ECOPRO","0","","",""]
["ALVARADEÑA","LA ALVARADEÑA C.A","J-11111111-1","CALLE CARABOBO CASA","626","0241-222223","VALENCIA","ESTADO CARABOBO","ECOPRO-S-D",0]
["SERVIPLAGAS","SERVIPLAGAS, C.A.","J-11111111-2","CALLE CARABOBO CASA","627","0241-222224","VALENCIA","ESTADO CARABOBO","ECOPLU",0]
["VISTAREAL","CONDOMINIO RES. VISTA REAL","J-11111111-3","CALLE CARABOBO CASA","628","0241-222225","VALENCIA","ESTADO CARABOBO","ECOPRE",-0.1]
["CARONISUITE","CONDOMINIO RES. CARONI SUITE","J-11111111-4","CALLE CARABOBO CASA","629","0241-222226","VALENCIA","ESTADO CARABOBO","RETIRADO",0,null,null,null,null,null,200]
["MULTISERVICIOS","MULTISERVICIOS DON LUIS, C.A.","J-11111111-5","CALLE CARABOBO CASA","630","0241-222227","VALENCIA","ESTADO CARABOBO","FULTIM",0]
["ROSAFLORES","ROSA FLORES","J-11111111-6","CALLE CARABOBO CASA","631","0241-222228","VALENCIA","ESTADO CARABOBO","RETIRADO",-0.05]
["NAYROBISBONACIA","NAYROBIS BONACIA","J-11111111-7","CALLE CARABOBO CASA","632","0241-222229","VALENCIA","ESTADO CARABOBO","ECOPRO",-0.2]
["MOFI","RESIDENCIAS MOFI","J-11111111-8","CALLE CARABOBO CASA","633","0241-222230","VALENCIA","ESTADO CARABOBO","ECOPRE",-0.05]
["MASAFIERRO","MASAFIERRO 1502 SYSTEMS OFFICES, C.A.","J-11111111-9","CALLE CARABOBO CASA","634","0241-222231","VALENCIA","ESTADO CARABOBO","CONSULTAR",0]
["CASTAÑO","CONDOMINIO RES. EL CASTAÑO","J-11111111-10","CALLE CARABOBO CASA","635","0241-222232","VALENCIA","ESTADO CARABOBO","EN PROCESO",-0.1]
["POMARROSA","CONDOMINIO RES. POMARROSA","J-11111111-11","CALLE CARABOBO CASA","636","0241-222233","VALENCIA","ESTADO CARABOBO","FULTIM",-0.15,"2014-04-11","2014-10-11"]

{"sheet":"SERVICIOS","index":1,"n_rows":606,"n_cols":20,"rows_kept":606,"cut":false,"hidden":true,"merged":[[23,19,23,20],[24,19,24,20],[26,11,26,13],[18,19,18,20],[19,19,19,20],[20,19,20,20],[21,19,21,20],[22,19,22,20],[13,19,13,20],[14,19,14,20],[15,19,15,20],[16,19,16,20],[17,19,17,20],[8,19,8,20],[9,19,9,20],[10,19,10,20],[11,19,11,20],[12,19,12,20],[3,19,3,20],[4,19,4,20],[5,19,5,20],[6,19,6,20],[7,19,7,20],[9,12,9,14],[3,12,3,14],[5,12,5,14],[6,12,6,14],[7,12,7,14],[8,12,8,14],[4,12,4,14],[16,12,16,14],[10,12,10,14],[11,12,11,14],[12,12,12,14],[13,12,13,14],[14,12,14,14],[15,12,15,14]]}
[]
[]
[]
[null,"COD","PRODUCTO / SERVICIO","COSTO","GANACIA","PRECIO","IVA","TOTAL",null,null,null,"MES","FECHA",null,null,null,"FORMA DE PAGO",null,null,"ASESOR"]
[null,1,"                   ",0,0,0,12,{"$f":"SUM(F5+G5)","v":12},null,null,null,"-","-",null,null,null,"CHEQUE N°:","-",null,"GENEL GONZALEZ"]
[null,"SERVAIR","SERVICIO DE PINTURA AIRLESS",50,100,{"$f":"E6+D6","v":150},12,162,212,212,null,"ENERO ","01/01/2014 AL 31/01/2014",null,null,null,"DEPÓSIO N°:","-"]
[null,"SERVRECU","SERVICIO DE RECUBRIMIENTO",100,100,{"$f":"E7+D7","v":200},12,212,12,null,null,"FEBRERO","01/02/2014 AL 28/02/2014",null,null,null,"TRANSFERENCIA N°:","-"]
[null,"SERVPIN","SERVICIO DE PINTURA A DOS MANOS",100,100,200,12,212,null,null,null,"MARZO","01/03/2014 AL 31/03/2014",null,null,null,"EFECTIVO:","-"]
[null,"ECOPRO","ECO HOGAR PRO (COMERCIAL) ",100,100,200,12,212,null,null,null,"ABRIL","01/04/2014 AL 30/04/2014"]
[null,"ECOPLU","ECO HOGAR PLUS (COMERCIAL) ",100,100,200,12,212,null,null,null,"MAYO","01/05/2014 AL 31/05/2014"]
[null,"ECOPRE","ECO HOGAR PREMIUM (COMERCIAL) ",100,100,200,12,212,null,null,null,"JUNIO","01/06/2014 AL 30/06/2014"]
[null,"FULTIM","ECO HOGAR FULLTIME (COMERCIAL)",100,100,200,12,212,null,null,null,"JULIO","01/07/2014 AL 31/07/2014"]
[null,"INA","INASISTENCIA",100,100,200,12,212,null,null,null,"AGOSTO","01/08/2014 AL 31/08/2014"]
[null,"ECOPROD","ECO HOGAR PRO (COMERCIAL) DOMINGO",100,100,200,12,212,null,null,null,"SEPTIEMBRE","01/09/2014 AL 30/09/2014"]
[null,"ECOPROS","ECO HOGAR PRO (COMERCIAL) SABADO",100,100,200,12,212,null,null,null,"OCTUBRE","01/10/2014 AL 31/10/2014"]
[null,"FERIADO","FERIADO NACIONAL O REGIONAL",100,100,200,12,212,null,null,null,"NOVIEMBRE","01/11/2014 AL 30/11/2014"]
[null,"DESINF","DESINFECTANTE CUÑETE",100,100,200,12,212,null,null,null,"DICIEMBRE","01/12/2014 AL 31/12/2014"]
[null,"DESENG","DESENGRASANTE CUÑETE",100,100,200,12,212]
[null,"MULTIU","MULTIUSOS CUÑETE",100,100,200,12,212]
[null,"DESINC","DESINCRUSTANTE CUÑETE",100,100,200,12,212]
[null,"BOLSAS","PAQUETE DE BOLSAS 40 KILOS 25 UNIDADES",100,100,200,12,212]
[null,"KITLIMP","KIT DE PRODUCTOS DE LIMPIEAZA",120,180,300,12,312,null,null,null,"TextBox6 = ActiveCell.Offset(0, 5)"]
[null,null,null,null,null,{"$f":"E23+D23","v":0},12,{"$f":"SUM(F23+G23)","v":12},null,null,null,"TextBox7 = ActiveCell.Offset(0, 4)"]
[null,null,null,null,null,0,12,12]
[null,null,null,null,null,0,12,12,null,null,null,"ActiveCell.Offset(0, 5) = TextBox6.Value"]
[null,null,null,null,null,0,12,12,null,null,null,"ActiveCell.Offset(0, 4) = TextBox7.Value"]
[null,null,null,null,null,0,12,12,null,null,null,"CONDICIONES DE SERVICIO"]
[null,null,null,null,null,0,12,12,null,null,null,"Los contratos mínimos son de seis (3) meses, los cuales deben de ser firmados y sellados por la junta directiva. Actualmente disponemos de un descuento en nuestros servicios.  Descuento \"A\": Cancelación pronto pago o pre pago.  Si usted cancela el 100% de la factura dentro de los primeros cinco (5) días hábiles de cada mes obtiene un 5% de Descuento. Descuento \"B\": Duración del contrato. Si usted firma un contrato mínimo de seis (6) meses obtiene un 5% de descuento adicional. Total descuento Ofrecido 10% sobre la facturación."]
[null,null,null,null,null,0,12,12]
[null,null,null,null,null,0,12,12]
[null,null,null,null,null,0,12,12]
[null,null,null,null,null,0,12,12]
[null,null,null,null,null,0,12,12]
[null,null,null,null,null,0,12,12]
[null,null,null,null,null,0,12,12]
[null,null,null,null,null,0,12,12]
[null,null,null,null,null,0,12,12]
[null,null,null,null,null,0,12,12]
[null,null,null,null,null,0,12,12]
[null,null,null,null,null,0,12,12]
[null,null,null,null,null,0,12,12]
[null,null,null,null,null,0,12,12]
[null,null,null,null,null,0,12,12]
[null,null,null,null,null,0,12,12]
[null,null,null,null,null,0,12,12]
[null,null,null,null,null,0,12,12]
[null,null,null,null,null,0,12,12]
[null,null,null,null,null,0,12,12]
[null,null,null,null,null,0,12,12]
[null,null,null,null,null,0,12,12]
[null,null,null,null,null,0,12,12]
[null,null,null,null,null,0,12,12]
[null,null,null,null,null,0,12,12]
[null,null,null,null,null,0,12,12]
[null,null,null,null,null,0,12,12]
[null,null,null,null,null,0,12,12]
[null,null,null,null,null,0,12,12]
[null,null,null,null,null,0,12,12]
[null,null,null,null,null,0,12,12]
[null,null,null,null,null,0,12,12]
[null,null,null,null,null,0,12,12]
[null,null,null,null,null,0,12,12]
[null,null,null,null,null,0,12,12]
[null,null,null,null,null,0,12,12]
[null,null,null,null,null,0,12,12]
[null,null,null,null,null,0,12,12]
[null,null,null,null,null,0,12,12]
[null,null,null,null,null,0,12,12]
[null,null,null,null,null,0,12,{"$f":"SUM(F69+G69)","v":12}]
[null,null,null,null,null,0,12,12]
[null,null,null,null,null,{"$f":"E71+D71","v":0},12,12]
[null,null,null,null,null,0,12,12]
[null,null,null,null,null,0,12,12]
[null,null,null,null,null,0,12,12]
[null,null,null,null,null,0,12,12]
[null,null,null,null,null,0,12,12]
[null,null,null,null,null,0,12,12]
[null,null,null,null,null,0,12,12]
[null,null,null,null,null,0,12,12]
[null,null,null,null,null,0,12,12]
[null,null,null,null,null,0,12,12]
[null,null,null,null,null,0,12,12]
[null,null,null,null,null,0,12,12]
[null,null,null,null,null,0,12,12]
[null,null,null,null,null,0,12,12]
[null,null,null,null,null,0,12,12]
[null,null,null,null,null,0,12,12]
[null,null,null,null,null,0,12,12]
[null,null,null,null,null,0,12,12]
[null,null,null,null,null,0,12,12]
[null,null,null,null,null,0,12,12]
[null,null,null,null,null,0,12,12]
[null,null,null,null,null,0,12,12]
[null,null,null,null,null,0,12,12]
[null,null,null,null,null,0,12,12]
[null,null,null,null,null,0,12,12]
[null,null,null,null,null,0,12,12]
[null,null,null,null,null,0,12,12]
[null,null,null,null,null,0,12,12]
[null,null,null,null,null,0,12,12]
[null,null,null,null,null,0,12,12]
[null,null,null,null,null,0,12,12]
[null,null,null,null,null,0,12,12]
[null,null,null,null,null,0,12,12]
[null,null,null,null,null,0,12,12]
[null,null,null,null,null,0,12,12]
[null,null,null,null,null,0,12,12]
[null,null,null,null,null,0,12,12]
[null,null,null,null,null,0,12,12]
[null,null,null,null,null,0,12,12]
[null,null,null,null,null,0,12,12]
[null,null,null,null,null,0,12,12]
[null,null,null,null,null,0,12,12]
[null,null,null,null,null,0,12,12]
[null,null,null,null,null,0,12,12]
[null,null,null,null,null,0,12,12]
[null,null,null,null,null,0,12,12]
[null,null,null,null,null,0,12,12]
[null,null,null,null,null,0,12,12]
[null,null,null,null,null,0,12,12]
[null,null,null,null,null,0,12,12]
[null,null,null,null,null,0,12,12]
[null,null,null,null,null,0,12,12]
[null,null,null,null,null,0,12,12]
[null,null,null,null,null,0,12,12]
[null,null,null,null,null,0,12,12]
[null,null,null,null,null,0,12,12]
[null,null,null,null,null,0,12,12]
[null,null,null,null,null,0,12,12]
[null,null,null,null,null,0,12,12]
[null,null,null,null,null,0,12,12]
[null,null,null,null,null,0,12,12]
[null,null,null,null,null,0,12,{"$f":"SUM(F133+G133)","v":12}]
[null,null,null,null,null,0,12,12]
[null,null,null,null,null,{"$f":"E135+D135","v":0},12,12]
[null,null,null,null,null,0,12,12]
[null,null,null,null,null,0,12,12]
[null,null,null,null,null,0,12,12]
[null,null,null,null,null,0,12,12]
[null,null,null,null,null,0,12,12]
[null,null,null,null,null,0,12,12]
[null,null,null,null,null,0,12,12]
[null,null,null,null,null,0,12,12]
[null,null,null,null,null,0,12,12]
[null,null,null,null,null,0,12,12]
[null,null,null,null,null,0,12,12]
[null,null,null,null,null,0,12,12]
[null,null,null,null,null,0,12,12]
[null,null,null,null,null,0,12,12]
[null,null,null,null,null,0,12,12]
[null,null,null,null,null,0,12,12]
[null,null,null,null,null,0,12,12]
[null,null,null,null,null,0,12,12]
[null,null,null,null,null,0,12,12]
[null,null,null,null,null,0,12,12]
[null,null,null,null,null,0,12,12]
[null,null,null,null,null,0,12,12]
[null,null,null,null,null,0,12,12]
[null,null,null,null,null,0,12,12]
[null,null,null,null,null,0,12,12]
[null,null,null,null,null,0,12,12]
[null,null,null,null,null,0,12,12]
[null,null,null,null,null,0,12,12]
[null,null,null,null,null,0,12,12]
[null,null,null,null,null,0,12,12]
[null,null,null,null,null,0,12,12]
[null,null,null,null,null,0,12,12]
[null,null,null,null,null,0,12,12]
[null,null,null,null,null,0,12,12]
[null,null,null,null,null,0,12,12]
[null,null,null,null,null,0,12,12]
[null,null,null,null,null,0,12,12]
[null,null,null,null,null,0,12,12]
[null,null,null,null,null,0,12,12]
[null,null,null,null,null,0,12,12]
[null,null,null,null,null,0,12,12]
[null,null,null,null,null,0,12,12]
[null,null,null,null,null,0,12,12]
[null,null,null,null,null,0,12,12]
[null,null,null,null,null,0,12,12]
[null,null,null,null,null,0,12,12]
[null,null,null,null,null,0,12,12]
[null,null,null,null,null,0,12,12]
[null,null,null,null,null,0,12,12]
[null,null,null,null,null,0,12,12]
[null,null,null,null,null,0,12,12]
[null,null,null,null,null,0,12,12]
[null,null,null,null,null,0,12,12]
[null,null,null,null,null,0,12,12]
[null,null,null,null,null,0,12,12]
[null,null,null,null,null,0,12,12]
[null,null,null,null,null,0,12,12]
[null,null,null,null,null,0,12,12]
[null,null,null,null,null,0,12,12]
[null,null,null,null,null,0,12,12]
[null,null,null,null,null,0,12,12]
[null,null,null,null,null,0,12,{"$f":"SUM(F197+G197)","v":12}]
[null,null,null,null,null,0,12,12]
[null,null,null,null,null,{"$f":"E199+D199","v":0},12,12]
[null,null,null,null,null,0,12,12]
[null,null,null,null,null,0,12,12]
[null,null,null,null,null,0,12,12]
[null,null,null,null,null,0,12,12]
[null,null,null,null,null,0,12,12]
[null,null,null,null,null,0,12,12]
[null,null,null,null,null,0,12,12]
[null,null,null,null,null,0,12,12]
[null,null,null,null,null,0,12,12]
[null,null,null,null,null,0,12,12]
[null,null,null,null,null,0,12,12]
[null,null,null,null,null,0,12,12]
[null,null,null,null,null,0,12,12]
[null,null,null,null,null,0,12,12]
[null,null,null,null,null,0,12,12]
[null,null,null,null,null,0,12,12]
[null,null,null,null,null,0,12,12]
[null,null,null,null,null,0,12,12]
[null,null,null,null,null,0,12,12]
[null,null,null,null,null,0,12,12]
[null,null,null,null,null,0,12,12]
[null,null,null,null,null,0,12,12]
[null,null,null,null,null,0,12,12]
[null,null,null,null,null,0,12,12]
[null,null,null,null,null,0,12,12]
[null,null,null,null,null,0,12,12]
[null,null,null,null,null,0,12,12]
[null,null,null,null,null,0,12,12]
[null,null,null,null,null,0,12,12]
[null,null,null,null,null,0,12,12]
[null,null,null,null,null,0,12,12]
[null,null,null,null,null,0,12,12]
[null,null,null,null,null,0,12,12]
[null,null,null,null,null,0,12,12]
[null,null,null,null,null,0,12,12]
[null,null,null,null,null,0,12,12]
[null,null,null,null,null,0,12,12]
[null,null,null,null,null,0,12,12]
[null,null,null,null,null,0,12,12]
[null,null,null,null,null,0,12,12]
[null,null,null,null,null,0,12,12]
[null,null,null,null,null,0,12,12]
[null,null,null,null,null,0,12,12]
[null,null,null,null,null,0,12,12]
[null,null,null,null,null,0,12,12]
[null,null,null,null,null,0,12,12]
[null,null,null,null,null,0,12,12]
[null,null,null,null,null,0,12,12]
[null,null,null,null,null,0,12,12]
[null,null,null,null,null,0,12,12]
[null,null,null,null,null,0,12,12]
[null,null,null,null,null,0,12,12]
[null,null,null,null,null,0,12,12]
[null,null,null,null,null,0,12,12]
[null,null,null,null,null,0,12,12]
[null,null,null,null,null,0,12,12]
[null,null,null,null,null,0,12,12]
[null,null,null,null,null,0,12,12]
[null,null,null,null,null,0,12,12]
[null,null,null,null,null,0,12,12]
[null,null,null,null,null,0,12,12]
[null,null,null,null,null,0,12,{"$f":"SUM(F261+G261)","v":12}]
[null,null,null,null,null,0,12,12]
[null,null,null,null,null,{"$f":"E263+D263","v":0},12,12]
[null,null,null,null,null,0,12,12]
[null,null,null,null,null,0,12,12]
[null,null,null,null,null,0,12,12]
[null,null,null,null,null,0,12,12]
[null,null,null,null,null,0,12,12]
[null,null,null,null,null,0,12,12]
[null,null,null,null,null,0,12,12]
[null,null,null,null,null,0,12,12]
[null,null,null,null,null,0,12,12]
[null,null,null,null,null,0,12,12]
[null,null,null,null,null,0,12,12]
[null,null,null,null,null,0,12,12]
[null,null,null,null,null,0,12,12]
[null,null,null,null,null,0,12,12]
[null,null,null,null,null,0,12,12]
[null,null,null,null,null,0,12,12]
[null,null,null,null,null,0,12,12]
[null,null,null,null,null,0,12,12]
[null,null,null,null,null,0,12,12]
[null,null,null,null,null,0,12,12]
[null,null,null,null,null,0,12,12]
[null,null,null,null,null,0,12,12]
[null,null,null,null,null,0,12,12]
[null,null,null,null,null,0,12,12]
[null,null,null,null,null,0,12,12]
[null,null,null,null,null,0,12,12]
[null,null,null,null,null,0,12,12]
[null,null,null,null,null,0,12,12]
[null,null,null,null,null,0,12,12]
[null,null,null,null,null,0,12,12]
[null,null,null,null,null,0,12,12]
[null,null,null,null,null,0,12,12]
[null,null,null,null,null,0,12,12]
[null,null,null,null,null,0,12,12]
[null,null,null,null,null,0,12,12]
[null,null,null,null,null,0,12,12]
[null,null,null,null,null,0,12,12]
[null,null,null,null,null,0,12,12]
[null,null,null,null,null,0,12,12]
[null,null,null,null,null,0,12,12]
[null,null,null,null,null,0,12,12]
[null,null,null,null,null,0,12,12]
[null,null,null,null,null,0,12,12]
[null,null,null,null,null,0,12,12]
[null,null,null,null,null,0,12,12]
[null,null,null,null,null,0,12,12]
[null,null,null,null,null,0,12,12]
[null,null,null,null,null,0,12,12]
[null,null,null,null,null,0,12,12]
[null,null,null,null,null,0,12,12]
[null,null,null,null,null,0,12,12]
[null,null,null,null,null,0,12,12]
[null,null,null,null,null,0,12,12]
[null,null,null,null,null,0,12,12]
[null,null,null,null,null,0,12,12]
[null,null,null,null,null,0,12,12]
[null,null,null,null,null,0,12,12]
[null,null,null,null,null,0,12,12]
[null,null,null,null,null,0,12,12]
[null,null,null,null,null,0,12,12]
[null,null,null,null,null,0,12,12]
[null,null,null,null,null,0,12,{"$f":"SUM(F325+G325)","v":12}]
[null,null,null,null,null,0,12,12]
[null,null,null,null,null,{"$f":"E327+D327","v":0},12,12]
[null,null,null,null,null,0,12,12]
[null,null,null,null,null,0,12,12]
[null,null,null,null,null,0,12,12]
[null,null,null,null,null,0,12,12]
[null,null,null,null,null,0,12,12]
[null,null,null,null,null,0,12,12]
[null,null,null,null,null,0,12,12]
[null,null,null,null,null,0,12,12]
[null,null,null,null,null,0,12,12]
[null,null,null,null,null,0,12,12]
[null,null,null,null,null,0,12,12]
[null,null,null,null,null,0,12,12]
[null,null,null,null,null,0,12,12]
[null,null,null,null,null,0,12,12]
[null,null,null,null,null,0,12,12]
[null,null,null,null,null,0,12,12]
[null,null,null,null,null,0,12,12]
[null,null,null,null,null,0,12,12]
[null,null,null,null,null,0,12,12]
[null,null,null,null,null,0,12,12]
[null,null,null,null,null,0,12,12]
[null,null,null,null,null,0,12,12]
[null,null,null,null,null,0,12,12]
[null,null,null,null,null,0,12,12]
[null,null,null,null,null,0,12,12]
[null,null,null,null,null,0,12,12]
[null,null,null,null,null,0,12,12]
[null,null,null,null,null,0,12,12]
[null,null,null,null,null,0,12,12]
[null,null,null,null,null,0,12,12]
[null,null,null,null,null,0,12,12]
[null,null,null,null,null,0,12,12]
[null,null,null,null,null,0,12,12]
[null,null,null,null,null,0,12,12]
[null,null,null,null,null,0,12,12]
[null,null,null,null,null,0,12,12]
[null,null,null,null,null,0,12,12]
[null,null,null,null,null,0,12,12]
[null,null,null,null,null,0,12,12]
[null,null,null,null,null,0,12,12]
[null,null,null,null,null,0,12,12]
[null,null,null,null,null,0,12,12]
[null,null,null,null,null,0,12,12]
[null,null,null,null,null,0,12,12]
[null,null,null,null,null,0,12,12]
[null,null,null,null,null,0,12,12]
[null,null,null,null,null,0,12,12]
[null,null,null,null,null,0,12,12]
[null,null,null,null,null,0,12,12]
[null,null,null,null,null,0,12,12]
[null,null,null,null,null,0,12,12]
[null,null,null,null,null,0,12,12]
[null,null,null,null,null,0,12,12]
[null,null,null,null,null,0,12,12]
[null,null,null,null,null,0,12,12]
[null,null,null,null,null,0,12,12]
[null,null,null,null,null,0,12,12]
[null,null,null,null,null,0,12,12]
[null,null,null,null,null,0,12,12]
[null,null,null,null,null,0,12,12]
[null,null,null,null,null,0,12,12]
[null,null,null,null,null,0,12,{"$f":"SUM(F389+G389)","v":12}]
[null,null,null,null,null,0,12,12]
[null,null,null,null,null,{"$f":"E391+D391","v":0},12,12]
[null,null,null,null,null,0,12,12]
[null,null,null,null,null,0,12,12]
[null,null,null,null,null,0,12,12]
[null,null,null,null,null,0,12,12]
[null,null,null,null,null,0,12,12]
[null,null,null,null,null,0,12,12]
[null,null,null,null,null,0,12,12]
[null,null,null,null,null,0,12,12]
[null,null,null,null,null,0,12,12]
[null,null,null,null,null,0,12,12]
[null,null,null,null,null,0,12,12]
[null,null,null,null,null,0,12,12]
[null,null,null,null,null,0,12,12]
[null,null,null,null,null,0,12,12]
[null,null,null,null,null,0,12,12]
[null,null,null,null,null,0,12,12]
[null,null,null,null,null,0,12,12]
[null,null,null,null,null,0,12,12]
[null,null,null,null,null,0,12,12]
[null,null,null,null,null,0,12,12]
[null,null,null,null,null,0,12,12]
[null,null,null,null,null,0,12,12]
[null,null,null,null,null,0,12,12]
[null,null,null,null,null,0,12,12]
[null,null,null,null,null,0,12,12]
[null,null,null,null,null,0,12,12]
[null,null,null,null,null,0,12,12]
[null,null,null,null,null,0,12,12]
[null,null,null,null,null,0,12,12]
[null,null,null,null,null,0,12,12]
[null,null,null,null,null,0,12,12]
[null,null,null,null,null,0,12,12]
[null,null,null,null,null,0,12,12]
[null,null,null,null,null,0,12,12]
[null,null,null,null,null,0,12,12]
[null,null,null,null,null,0,12,12]
[null,null,null,null,null,0,12,12]
[null,null,null,null,null,0,12,12]
[null,null,null,null,null,0,12,12]
[null,null,null,null,null,0,12,12]
[null,null,null,null,null,0,12,12]
[null,null,null,null,null,0,12,12]
[null,null,null,null,null,0,12,12]
[null,null,null,null,null,0,12,12]
[null,null,null,null,null,0,12,12]
[null,null,null,null,null,0,12,12]
[null,null,null,null,null,0,12,12]
[null,null,null,null,null,0,12,12]
[null,null,null,null,null,0,12,12]
[null,null,null,null,null,0,12,12]
[null,null,null,null,null,0,12,12]
[null,null,null,null,null,0,12,12]
[null,null,null,null,null,0,12,12]
[null,null,null,null,null,0,12,12]
[null,null,null,null,null,0,12,12]
[null,null,null,null,null,0,12,12]
[null,null,null,null,null,0,12,12]
[null,null,null,null,null,0,12,12]
[null,null,null,null,null,0,12,12]
[null,null,null,null,null,0,12,12]
[null,null,null,null,null,0,12,12]
[null,null,null,null,null,0,12,{"$f":"SUM(F453+G453)","v":12}]
[null,null,null,null,null,0,12,12]
[null,null,null,null,null,{"$f":"E455+D455","v":0},12,12]
[null,null,null,null,null,0,12,12]
[null,null,null,null,null,0,12,12]
[null,null,null,null,null,0,12,12]
[null,null,null,null,null,0,12,12]
[null,null,null,null,null,0,12,12]
[null,null,null,null,null,0,12,12]
[null,null,null,null,null,0,12,12]
[null,null,null,null,null,0,12,12]
[null,null,null,null,null,0,12,12]
[null,null,null,null,null,0,12,12]
[null,null,null,null,null,0,12,12]
[null,null,null,null,null,0,12,12]
[null,null,null,null,null,0,12,12]
[null,null,null,null,null,0,12,12]
[null,null,null,null,null,0,12,12]
[null,null,null,null,null,0,12,12]
[null,null,null,null,null,0,12,12]
[null,null,null,null,null,0,12,12]
[null,null,null,null,null,0,12,12]
[null,null,null,null,null,0,12,12]
[null,null,null,null,null,0,12,12]
[null,null,null,null,null,0,12,12]
[null,null,null,null,null,0,12,12]
[null,null,null,null,null,0,12,12]
[null,null,null,null,null,0,12,12]
[null,null,null,null,null,0,12,12]
[null,null,null,null,null,0,12,12]
[null,null,null,null,null,0,12,12]
[null,null,null,null,null,0,12,12]
[null,null,null,null,null,0,12,12]
[null,null,null,null,null,0,12,12]
[null,null,null,null,null,0,12,12]
[null,null,null,null,null,0,12,12]
[null,null,null,null,null,0,12,12]
[null,null,null,null,null,0,12,12]
[null,null,null,null,null,0,12,12]
[null,null,null,null,null,0,12,12]
[null,null,null,null,null,0,12,12]
[null,null,null,null,null,0,12,12]
[null,null,null,null,null,0,12,12]
[null,null,null,null,null,0,12,12]
[null,null,null,null,null,0,12,12]
[null,null,null,null,null,0,12,12]
[null,null,null,null,null,0,12,12]
[null,null,null,null,null,0,12,12]
[null,null,null,null,null,0,12,12]
[null,null,null,null,null,0,12,12]
[null,null,null,null,null,0,12,12]
[null,null,null,null,null,0,12,12]
[null,null,null,null,null,0,12,12]
[null,null,null,null,null,0,12,12]
[null,null,null,null,null,0,12,12]
[null,null,null,null,null,0,12,12]
[null,null,null,null,null,0,12,12]
[null,null,null,null,null,0,12,12]
[null,null,null,null,null,0,12,12]
[null,null,null,null,null,0,12,12]
[null,null,null,null,null,0,12,12]
[null,null,null,null,null,0,12,12]
[null,null,null,null,null,0,12,12]
[null,null,null,null,null,0,12,12]
[null,null,null,null,null,0,12,{"$f":"SUM(F517+G517)","v":12}]
[null,null,null,null,null,0,12,12]
[null,null,null,null,null,{"$f":"E519+D519","v":0},12,12]
[null,null,null,null,null,0,12,12]
[null,null,null,null,null,0,12,12]
[null,null,null,null,null,0,12,12]
[null,null,null,null,null,0,12,12]
[null,null,null,null,null,0,12,12]
[null,null,null,null,null,0,12,12]
[null,null,null,null,null,0,12,12]
[null,null,null,null,null,0,12,12]
[null,null,null,null,null,0,12,12]
[null,null,null,null,null,0,12,12]
[null,null,null,null,null,0,12,12]
[null,null,null,null,null,0,12,12]
[null,null,null,null,null,0,12,12]
[null,null,null,null,null,0,12,12]
[null,null,null,null,null,0,12,12]
[null,null,null,null,null,0,12,12]
[null,null,null,null,null,0,12,12]
[null,null,null,null,null,0,12,12]
[null,null,null,null,null,0,12,12]
[null,null,null,null,null,0,12,12]
[null,null,null,null,null,0,12,12]
[null,null,null,null,null,0,12,12]
[null,null,null,null,null,0,12,12]
[null,null,null,null,null,0,12,12]
[null,null,null,null,null,0,12,12]
[null,null,null,null,null,0,12,12]
[null,null,null,null,null,0,12,12]
[null,null,null,null,null,0,12,12]
[null,null,null,null,null,0,12,12]
[null,null,null,null,null,0,12,12]
[null,null,null,null,null,0,12,12]
[null,null,null,null,null,0,12,12]
[null,null,null,null,null,0,12,12]
[null,null,null,null,null,0,12,12]
[null,null,null,null,null,0,12,12]
[null,null,null,null,null,0,12,12]
[null,null,null,null,null,0,12,12]
[null,null,null,null,null,0,12,12]
[null,null,null,null,null,0,12,12]
[null,null,null,null,null,0,12,12]
[null,null,null,null,null,0,12,12]
[null,null,null,null,null,0,12,12]
[null,null,null,null,null,0,12,12]
[null,null,null,null,null,0,12,12]
[null,null,null,null,null,0,12,12]
[null,null,null,null,null,0,12,12]
[null,null,null,null,null,0,12,12]
[null,null,null,null,null,0,12,12]
[null,null,null,null,null,0,12,12]
[null,null,null,null,null,0,12,12]
[null,null,null,null,null,0,12,12]
[null,null,null,null,null,0,12,12]
[null,null,null,null,null,0,12,12]
[null,null,null,null,null,0,12,12]
[null,null,null,null,null,0,12,12]
[null,null,null,null,null,0,12,12]
[null,null,null,null,null,0,12,12]
[null,null,null,null,null,0,12,12]
[null,null,null,null,null,0,12,12]
[null,null,null,null,null,0,12,12]
[null,null,null,null,null,0,12,12]
[null,null,null,null,null,0,12,{"$f":"SUM(F581+G581)","v":12}]
[null,null,null,null,null,0,12,12]
[null,null,null,null,null,{"$f":"E583+D583","v":0},12,12]
[null,null,null,null,null,0,12,12]
[null,null,null,null,null,0,12,12]
[null,null,null,null,null,0,12,12]
[null,null,null,null,null,0,12,12]
[null,null,null,null,null,0,12,12]
[null,null,null,null,null,0,12,12]
[null,null,null,null,null,0,12,12]
[null,null,null,null,null,0,12,12]
[null,null,null,null,null,0,12,12]
[null,null,null,null,null,0,12,12]
[null,null,null,null,null,0,12,12]
[null,null,null,null,null,0,12,12]
[null,null,null,null,null,0,12,12]
[null,null,null,null,null,0,12,12]
[null,null,null,null,null,0,12,12]
[null,null,null,null,null,0,12,12]
[null,null,null,null,null,0,12,12]
[null,null,null,null,null,0,12,12]
[null,null,null,null,null,0,12,12]
[null,null,null,null,null,0,12,12]
[null,null,null,null,null,0,12,12]
[null,null,null,null,null,0,12,12]
[null,null,null,null,null,0,12,{"$f":"SUM(F606+G606)","v":12}]

{"sheet":"PRO-FORMAS","index":2,"n_rows":26,"n_cols":24,"rows_kept":26,"cut":false,"hidden":false,"merged":[[1,10,1,15],[1,16,1,18],[1,19,1,20],[1,21,1,23],[5,6,5,7],[5,9,5,10],[5,11,5,16],[10,21,10,22],[7,1,7,6],[7,7,7,23],[8,1,8,5],[8,6,8,23],[9,5,9,8],[10,1,10,3],[10,4,10,6],[10,9,10,10],[10,11,10,15],[10,18,10,19],[9,1,9,3],[11,1,11,2],[11,4,11,14],[11,15,11,18],[11,19,11,23],[12,1,12,2],[12,15,12,18],[12,19,12,23],[12,4,12,14],[13,1,13,2],[13,4,13,14],[13,15,13,18],[13,19,13,23],[14,1,14,2],[14,4,14,14],[14,15,14,18],[14,19,14,23],[15,1,15,2],[15,4,15,14],[15,15,15,18],[15,19,15,23],[16,1,16,2],[16,4,16,14],[16,15,16,18],[16,19,16,23],[17,1,17,2],[17,4,17,14],[17,15,17,18],[17,19,17,23],[18,1,18,2],[18,4,18,14],[18,15,18,18],[18,19,18,23],[19,1,19,3],[19,15,19,17],[19,19,19,23],[20,1,20,3],[20,6,20,7],[20,19,20,23],[20,15,20,17],[19,4,19,8],[21,0,21,3],[21,4,21,7],[21,15,21,17],[21,19,21,23],[22,1,22,3],[22,4,22,7],[22,15,22,17],[22,19,22,23],[23,8,23,9],[23,11,23,17],[23,19,23,23],[24,8,24,9],[25,8,25,9]]}
[]
[]
[]
[]
[]
[null,"FECHA DE EMISIÓN:",null,null,null,null,{"$f":"TODAY()","v":"2014-05-10"},null,null," F. DE VENCIMIENTO:",null,{"$f":"TODAY()+5","v":"2014-05-15"},null,null,null,null,null,null,"PRO FORMA Nº",null,null,null,"PF",511]
[]
[null,"Nombre ó Razón Social:",null,null,null,null,null,"SUPERFLY, C.A"]
[null,"Domicilio Fiscal:",null,null,null,null,"CALLE CARABOBO CASA 144-30 LA VIÑA"]
[null,"VALENCIA",null,null,",","ESTADO CARABOBO"]
[null,"Teléfono (s):",null,null,"0241-222222",null,null,"RIF:","J-31080518-0","Cond. de Pago ",null,"Contado",null,null,null,null,"X",null,"Crédito",null,null,5,null,"Días"]
[null,"UNI",null,"CANT","DESCRIPCIÓN",null,null,null,null,null,null,null,null,null,null,"PRECIO UNI",null,null,null,"TOTAL"]
[null,1,null,30,"ECO HOGAR PRO (COMERCIAL) ",null,null,null,null,null,null,null,null,null,null,625,null,null,null,{"$f":"SUM(B13*D13*P13)","v":18750}]
[null,null,null,null,null,null,null,null,null,null,null,null,null,null,null,null,null,null,null,0]
[null,null,null,null,null,null,null,null,null,null,null,null,null,null,null,null,null,null,null,0]
[null,null,null,null,null,null,null,null,null,null,null,null,null,null,null,null,null,null,null,0]
[null,null,null,null,null,null,null,null,null,null,null,null,null,null,null,null,null,null,null,0]
[null,null,null,null,null,null,null,null,null,null,null,null,null,null,null,null,null,null,null,0]
[null,null,null,null,null,null,null,null,null,null,null,null,null,null,null,null,null,null,null,0]
[null,"PERIODO DEL:",null,null,"01/08/2014 AL 31/08/2014",null,null,null,null,null,null,null,"SUB-TOTAL",null,null,"TOTAL",null,null,"Bs",{"$f":"SUM(T13:X19)","v":18750}]
[null,"FORMA DE PAGO",null,null,null,null,null,null,null,null,null,0,"DESCUENTO",null,"%","DESCUENTO",null,null,"Bs",{"$f":"SUM(T20*L21)","v":0}]
["CHEQUE N°:",null,null,null,"-",null,null,null,null,null,null,null,null,null,null,"SUB-TOTAL",null,null,"Bs",{"$f":"SUM(T20+T21)","v":18750}]
[null,"BANCO:",null,null,"-",null,null,null,null,null,null,null,"I.V.A",null,null,0.12,null,null,"Bs",{"$f":"SUM(T22*P23)","v":2250}]
[null,null,null,null,null,null,null,null,null,null," ","TOTAL A PAGAR",null,null,null,null,null,null,"Bs",{"$f":"SUM(T22+T23)","v":21000}]
[]
[null,null,null,null,null,null,null,null,"RECIBIDO POR"]